{"text_format":"3","workbook":"xlsx","n_sheets":2,"sheets":["Profesionální faktura","Nastavení společnosti"],"not_rendered":{"images":1,"defined_names":27},"read":"whole","date_system":"1900"}

{"sheet":"Profesionální faktura","index":0,"n_rows":35,"n_cols":7,"rows_kept":35,"merged":[[1,1,1,2],[1,3,2,4],[1,6,2,6],[3,3,3,4],[4,3,4,4],[5,3,5,4],[23,1,23,3],[24,1,24,3],[25,1,25,3],[26,1,26,3],[34,1,34,4]]}
[null,"FAKTURA","0005"]
[null,{"$f":"TODAY()","v":"2018-07-13"},null,{"$f":"CelkováČástkaFaktury","v":{"v":1593,"d":"1,593 Kč"}},null," ","Nastavení společnosti"]
[null,"DATUM SPLATNOSTI:",{"$f":"TODAY()+15","v":"2018-07-28"},null,null," "]
[null,"KATEŘINA SÝKOROVÁ",null,"NOTEBOOKOVÉ DISPLEJE, A.S."]
[null,"Kočáry a bryčky, a. s.",null,"Úzká 34"]
[null,"Modrá 44",null,"456 54 Zlín"]
[null,"765 43 Ostrava"]
[null,"MNOŽSTVÍ","PODROBNOSTI","JEDNOTKOVÁ CENA","CELKEM ZA ŘÁDEK"]
[null,2,"Pomůcky",{"v":299,"d":"299.00"},{"$f":"IFERROR(PodrobnostiFaktury[[#This Row],[JEDNOTKOVÁ CENA]]*PodrobnostiFaktury[[#This Row],[MNOŽSTVÍ]],\"\")","v":{"v":598,"d":"598.00"}}]
[null,5,"Podložky",{"v":199,"d":"199.00"},{"$f":"IFERROR(PodrobnostiFaktury[[#This Row],[JEDNOTKOVÁ CENA]]*PodrobnostiFaktury[[#This Row],[MNOŽSTVÍ]],\"\")","v":{"v":995,"d":"995.00"}}]
[{"$nulls":4},{"$f":"IFERROR(PodrobnostiFaktury[[#This Row],[JEDNOTKOVÁ CENA]]*PodrobnostiFaktury[[#This Row],[MNOŽSTVÍ]],\"\")","v":0}]
[{"$nulls":4},{"$f":"IFERROR(PodrobnostiFaktury[[#This Row],[JEDNOTKOVÁ CENA]]*PodrobnostiFaktury[[#This Row],[MNOŽSTVÍ]],\"\")","v":0}]
[{"$nulls":4},{"$f":"IFERROR(PodrobnostiFaktury[[#This Row],[JEDNOTKOVÁ CENA]]*PodrobnostiFaktury[[#This Row],[MNOŽSTVÍ]],\"\")","v":0}]
[{"$nulls":4},{"$f":"IFERROR(PodrobnostiFaktury[[#This Row],[JEDNOTKOVÁ CENA]]*PodrobnostiFaktury[[#This Row],[MNOŽSTVÍ]],\"\")","v":0}]
[{"$nulls":4},{"$f":"IFERROR(PodrobnostiFaktury[[#This Row],[JEDNOTKOVÁ CENA]]*PodrobnostiFaktury[[#This Row],[MNOŽSTVÍ]],\"\")","v":0}]
[{"$nulls":4},{"$f":"IFERROR(PodrobnostiFaktury[[#This Row],[JEDNOTKOVÁ CENA]]*PodrobnostiFaktury[[#This Row],[MNOŽSTVÍ]],\"\")","v":0}]
[{"$nulls":4},{"$f":"IFERROR(PodrobnostiFaktury[[#This Row],[JEDNOTKOVÁ CENA]]*PodrobnostiFaktury[[#This Row],[MNOŽSTVÍ]],\"\")","v":0}]
[{"$nulls":4},{"$f":"IFERROR(PodrobnostiFaktury[[#This Row],[JEDNOTKOVÁ CENA]]*PodrobnostiFaktury[[#This Row],[MNOŽSTVÍ]],\"\")","v":0}]
[{"$nulls":4},{"$f":"IFERROR(PodrobnostiFaktury[[#This Row],[JEDNOTKOVÁ CENA]]*PodrobnostiFaktury[[#This Row],[MNOŽSTVÍ]],\"\")","v":0}]
[{"$nulls":4},{"$f":"IFERROR(PodrobnostiFaktury[[#This Row],[JEDNOTKOVÁ CENA]]*PodrobnostiFaktury[[#This Row],[MNOŽSTVÍ]],\"\")","v":0}]
[{"$nulls":4},{"$f":"IFERROR(PodrobnostiFaktury[[#This Row],[JEDNOTKOVÁ CENA]]*PodrobnostiFaktury[[#This Row],[MNOŽSTVÍ]],\"\")","v":0}]
[{"$nulls":4},{"$f":"IFERROR(PodrobnostiFaktury[[#This Row],[JEDNOTKOVÁ CENA]]*PodrobnostiFaktury[[#This Row],[MNOŽSTVÍ]],\"\")","v":0}]
[{"$nulls":4},{"$f":"IFERROR(PodrobnostiFaktury[[#This Row],[JEDNOTKOVÁ CENA]]*PodrobnostiFaktury[[#This Row],[MNOŽSTVÍ]],\"\")","v":0}]
[null,"Sleva"]
[null,"Celkem bez daně",null,null,{"$f":"SUM(PodrobnostiFaktury[CELKEM ZA ŘÁDEK])-E24","v":{"v":1593,"d":"1,593.00 Kč"}}]
[null,"Daň"]
[null,{"$f":"\" Celkem v \" & REPT(NastaveníSpolečnosti_ZkratkaVašíMěny,LEN(NastaveníSpolečnosti_ZkratkaVašíMěny)>0)","v":" Celkem v Kč"},null,null,{"$f":"IFERROR(E25+E26, \"\")","v":{"v":1593,"d":"1,593.00 Kč"}}]
[null,"PODROBNOSTI PLATBY",null,null,"DALŠÍ INFORMACE"]
[null,"Název příjemce:",{"$f":" NastaveníSpolečnosti_PříjemceBankovníchPlateb","v":"Notebookové displeje, a.s."},null,{"$f":"IFERROR(NastaveníSpolečnosti_VašeJméno,\"\")","v":""}]
[null,"Název banky:",{"$f":"NastaveníSpolečnosti_NázevBanky","v":"Woodgrove Bank"},null,{"$f":"IFERROR(\"Telefon: \" & NastaveníSpolečnosti_VášTelefon,\"\")","v":"Telefon: 123456789"}]
[null,"Adresa banky:",{"$f":"NastaveníSpolečnosti_AdresaBanky","v":"Světlá 32, 654 56 Plzeň"},null,{"$f":"IFERROR(\"Fax: \" & NastaveníSpolečnosti_VášFax,\"\")","v":"Fax: 123555789"}]
[null,"Číslo účtu:",{"$f":"NastaveníSpolečnosti_BankovníÚčet","v":1234567},null,{"$f":"IFERROR(NastaveníSpolečnosti_VašeAdresaURL,\"\")","v":"www.notebookovedispleje.cz"}]
[null,"Směrový kód banky (SWIFT):",{"$f":"NastaveníSpolečnosti_SměrovýKódBanky","v":9876543210},null,{"$f":"IFERROR(NastaveníSpolečnosti_VášEmail,\"\")","v":"uctarna@notebookovedispleje.cz"}]
[null,"Variabilní symbol:",{"$f":"ZobrazeníČíslaFaktury","v":"0005"},null,{"$f":"IFERROR(IF(LEN(Client_PO),\"Contract/PO: \" & Client_PO,\"\"),\"\")","v":""}]
[null,{"$f":"UPPER(\"Platbu je nutné provést bankovním převodem nebo šekem vystaveným k úhradě příjemci \" & NastaveníSpolečnosti_PříjemceŠekovýchPlateb& \"\")","v":"PLATBU JE NUTNÉ PROVÉST BANKOVNÍM PŘEVODEM NEBO ŠEKEM VYSTAVENÝM K ÚHRADĚ PŘÍJEMCI NOTEBOOKOVÉ DISPLEJE, A.S."}]

{"sheet":"Nastavení společnosti","index":1,"n_rows":20,"n_cols":5,"rows_kept":20}
[null,"NASTAVENÍ SPOLEČNOSTI"]
[null,"PODROBNOSTI O FAKTURUJÍCÍ SPOLEČNOSTI","HODNOTA",null,"Profesionální faktura"]
[null,"Jméno","Stanislav Tomek"]
[null,"Název společnosti","NOTEBOOKOVÉ DISPLEJE, A.S."]
[null,"Řádek adresy 1","Úzká 34"]
[null,"Řádek adresy 2","456 54 Zlín"]
[null,"Řádek adresy 3"]
[null,"Řádek adresy 4"]
[null,"Řádek adresy 5"]
[null,"Telefon",123456789]
[null,"Fax",123555789]
[null,"Web","www.notebookovedispleje.cz"]
[null,"E-mail","uctarna@notebookovedispleje.cz"]
[null,"Zkratka měny","Kč"]
[null,"Jméno příjemce bankovních převodů","Notebookové displeje, a.s."]
[null,"Název banky","Woodgrove Bank"]
[null,"Adresa banky","Světlá 32, 654 56 Plzeň"]
[null,"Číslo účtu",1234567]
[null,"Směrový kód banky (SWIFT)",9876543210]
[null,"Příjemce šekových plateb","Notebookové displeje, a.s."]